bitfinex/quotes_BTCUSD_20251208
["timestamp","ask_amount","ask_price","bid_price","bid_amount"]
[1765188105011,0.68392264,91971.0,91970.0,3.69217714]
[1765188105439,0.68292264,91971.0,91970.0,3.69217714]
[1765188105836,0.68592264,91971.0,91970.0,3.69217714]
[1765188106038,0.68992264,91971.0,91970.0,3.69217714]
[1765188116450,0.7996277,91971.0,91970.0,3.69217714]
[1765188116857,0.68992264,91971.0,91970.0,3.69217714]
[1765188118287,0.6380089,91971.0,91970.0,3.69322225]
[1765188118645,0.6630889,91971.0,91970.0,3.69322225]
[1765188119272,0.60535067,91971.0,91970.0,3.69322225]
[1765188119589,0.59835067,91971.0,91970.0,3.69322225]
[1765188119796,0.60035067,91971.0,91970.0,3.69322225]
[1765188119955,0.62643067,91971.0,91970.0,3.69322225]
[1765188120625,0.62643067,91971.0,91970.0,3.69217714]
[1765188120798,0.64862666,91971.0,91970.0,3.69217714]
[1765188121723,0.62643067,91971.0,91970.0,3.69217714]
[1765188123937,0.64862666,91971.0,91970.0,3.69217714]
[1765188126099,0.62699842,91971.0,91970.0,3.69217714]
[1765188126316,0.75889947,91971.0,91970.0,3.69217714]
[1765188126645,1.00379947,91971.0,91970.0,3.69217714]
[1765188128891,1.03646086,91971.0,91970.0,3.69217714]
[1765188129093,1.03646086,91971.0,91970.0,3.19435714]
[1765188129824,1.03546086,91971.0,91970.0,3.19435714]
[1765188130203,1.03946086,91971.0,91970.0,3.19435714]
[1765188131097,1.03746086,91971.0,91970.0,3.19435714]
[1765188131302,0.9277558,91971.0,91970.0,3.19435714]
[1765188131634,0.9327558,91971.0,91970.0,3.19435714]
[1765188134610,0.9327558,91971.0,91970.0,2.94945714]
[1765188137383,0.9499158,91971.0,91970.0,2.94945714]
[1765188139201,0.9327558,91971.0,91970.0,2.94945714]
[1765188139520,0.9499158,91971.0,91970.0,2.94945714]
[1765188139721,1.05962086,91971.0,91970.0,2.94945714]
[1765188140826,1.04246086,91971.0,91970.0,2.94945714]
[1765188141041,0.9499158,91971.0,91970.0,2.94945714]
[1765188142290,0.9409158,91971.0,91970.0,2.94945714]
[1765188142469,0.9439158,91971.0,91970.0,2.94945714]
[1765188142674,0.9459158,91971.0,91970.0,2.94945714]
[1765188143400,1.05562086,91971.0,91970.0,2.94945714]
[1765188143834,1.05562086,91971.0,91970.0,2.43142833]
[1765188144037,1.05562086,91971.0,91970.0,1.91794766]
[1765188144038,6.05562086,91971.0,91970.0,1.91794766]
[1765188144213,2.61092086,91971.0,91970.0,1.87248223]
[1765188144372,2.34102086,91971.0,91970.0,1.73499715]
[1765188144574,2.34102086,91971.0,91970.0,1.59627774]
[1765188144916,2.33602086,91971.0,91970.0,1.43254303]
[1765188145135,1.30892086,91971.0,91970.0,1.43254303]
[1765188145329,0.9499158,91971.0,91970.0,1.43254303]
[1765188145546,0.9449158,91971.0,91970.0,1.43254303]
[1765188145738,0.9509158,91971.0,91970.0,1.43254303]
[1765188145901,0.9569158,91971.0,91970.0,1.43254303]
[1765188146315,5.9569158,91971.0,91970.0,0.88628217]
[1765188146633,6.06662086,91971.0,91970.0,0.88628217]
[1765188146867,3.65992086,91971.0,91970.0,0.88628217]
[1765188147075,3.51952086,91971.0,91970.0,0.88628217]
[1765188147217,1.47342086,91971.0,91970.0,0.88628217]
[1765188147418,3.00992086,91971.0,91970.0,0.88628217]
[1765188148249,1.39032086,91971.0,91970.0,0.88628217]
[1765188148614,1.19762086,91971.0,91970.0,0.88628217]
[1765188149482,3.92622086,91971.0,91970.0,0.88628217]
[1765188150044,3.03182086,91971.0,91970.0,0.88628217]
[1765188150433,1.32752086,91971.0,91970.0,0.88628217]
[1765188151146,1.31036086,91971.0,91970.0,0.88628217]
[1765188151344,1.32752086,91971.0,91970.0,0.88628217]
[1765188151548,6.06662086,91971.0,91970.0,0.88628217]
[1765188151973,6.06662086,91971.0,91970.0,0.29601331]
[1765188153930,5.62518592,91968.0,91967.0,0.00023216]
[1765188154128,5.64194592,91968.0,91967.0,0.00023216]
[1765188154332,5.66633592,91968.0,91967.0,0.00023216]
[1765188155149,5.67133592,91968.0,91967.0,0.00023216]
[1765188155357,0.54048349,91961.0,91960.0,0.0004]
[1765188155532,0.77966753,91961.0,91960.0,0.0004]
[1765188155755,0.80405753,91961.0,91960.0,0.0004]
[1765188156301,0.80841316,91961.0,91960.0,0.0004]
[1765188156479,5.14801316,91961.0,91960.0,1e-08]
[1765188156682,1.34751717,91961.0,91960.0,1e-08]
[1765188156826,1.05731316,91961.0,91960.0,1e-08]
[1765188157028,1.06231316,91961.0,91960.0,1e-08]
[1765188157624,0.9526081,91961.0,91960.0,1e-08]
[1765188158702,0.93041211,91961.0,91960.0,1e-08]
[1765188158897,5.9526081,91961.0,91960.0,1e-08]
[1765188161317,1.0742081,91961.0,91960.0,1e-08]
[1765188161468,0.9526081,91961.0,91960.0,1e-08]
[1765188161678,1.06231316,91961.0,91960.0,1e-08]
[1765188162481,6.06231316,91961.0,91960.0,1e-08]
[1765188163447,5.10011316,91961.0,91960.0,1e-08]
[1765188163601,4.87931316,91961.0,91960.0,1e-08]
[1765188163982,1.34185316,91961.0,91960.0,1e-08]
[1765188164324,1.06231316,91961.0,91960.0,1e-08]
[1765188164799,0.73931316,91961.0,91960.0,1e-08]
[1765188168350,0.9526081,91961.0,91960.0,1e-08]
[1765188172760,0.73512461,91961.0,91940.0,0.0002122]
[1765188173014,0.65407107,91941.0,91940.0,0.0002122]
[1765188173179,0.67123107,91941.0,91940.0,0.0002122]
[1765188173383,0.70007107,91941.0,91940.0,0.0002122]
[1765188174194,0.70007107,91941.0,91940.0,0.00060195]
[1765188175695,0.70207107,91941.0,91940.0,0.00060195]
[1765188178718,0.70207107,91941.0,91940.0,0.00115354]
[1765188179493,0.62133107,91941.0,91940.0,0.00115354]
[1765188179675,0.63849107,91941.0,91940.0,0.00115354]
[1765188180842,0.63849107,91941.0,91940.0,0.00315354]
[1765188181063,0.63649107,91941.0,91940.0,0.00315354]
[1765188181537,0.74317107,91941.0,91940.0,0.00315354]
[1765188181722,0.63749107,91941.0,91940.0,0.00315354]
[1765188183274,0.74317107,91941.0,91940.0,0.00315354]
[1765188186565,0.76536706,91941.0,91940.0,0.00315354]
[1765188187150,0.74317107,91941.0,91940.0,0.00315354]
[1765188202224,0.76536706,91941.0,91940.0,0.00315354]
[1765188202656,0.78886509,91941.0,91940.0,0.00315354]
[1765188203172,0.7666691,91941.0,91940.0,0.00315354]
[1765188214783,0.78886509,91941.0,91940.0,0.00315354]
[1765188216433,0.82259342,91941.0,91940.0,0.00315354]
[1765188216634,0.90292594,91941.0,91940.0,0.00315354]
[1765188216852,0.94208933,91941.0,91940.0,0.00315354]
[1765188217082,0.90292594,91941.0,91940.0,0.00315354]
[1765188217928,0.90192594,91941.0,91940.0,0.00315354]
[1765188218124,0.90492594,91941.0,91940.0,0.00115354]
[1765188218962,0.90692594,91941.0,91940.0,0.00115354]
[1765188219523,1.15182594,91941.0,91940.0,0.00115354]
[1765188219863,0.73605364,91941.0,91940.0,0.00115354]
[1765188220091,0.77502489,91941.0,91940.0,0.00115354]
[1765188220225,0.80436893,91941.0,91940.0,0.00115354]
[1765188220432,0.77502489,91941.0,91940.0,0.00115354]
[1765188220748,0.2808219,91941.0,91940.0,0.00115354]
[1765188220948,0.57596808,91941.0,91940.0,0.00115354]
[1765188221162,0.6619891,91941.0,91940.0,0.00115354]
[1765188221705,0.6629891,91941.0,91940.0,0.00115354]
[1765188223632,0.7662291,91941.0,91940.0,0.00115354]
[1765188225688,0.78842509,91941.0,91940.0,0.00115354]
[1765188225836,0.7662291,91941.0,91940.0,0.00115354]
[1765188233651,0.78842509,91941.0,91940.0,0.00115354]
[1765188236609,0.7662291,91941.0,91940.0,0.00115354]
[1765188239444,0.7051291,91941.0,91940.0,0.00115354]
[1765188239716,0.7603591,91941.0,91940.0,0.00115354]
[1765188243981,0.7431991,91941.0,91940.0,0.00115354]
[1765188244226,0.7603591,91941.0,91940.0,0.00115354]
[1765188248351,0.6991191,91941.0,91940.0,0.00115354]
[1765188248848,0.6458291,91941.0,91940.0,0.00115354]
[1765188249067,0.6629891,91941.0,91940.0,0.00115354]
[1765188249462,0.6619891,91941.0,91940.0,0.00115354]
[1765188249634,0.7172191,91941.0,91940.0,0.00315354]
[1765188249839,0.7152191,91941.0,91940.0,0.00315354]
[1765188250043,0.6599891,91941.0,91940.0,0.00315354]
[1765188251061,0.6609891,91941.0,91940.0,0.00315354]
[1765188251273,0.6878191,91941.0,91940.0,0.00315354]
[1765188251475,0.7791791,91941.0,91940.0,0.00315354]
[1765188253507,0.92128038,91941.0,91940.0,0.00315354]
[1765188253923,0.81157532,91941.0,91940.0,0.00315354]
[1765188255701,0.81157317,91941.0,91940.0,0.00315354]
[1765188257078,0.81057317,91941.0,91940.0,0.00315354]
[1765188257468,0.79037718,91941.0,91940.0,0.00315354]
[1765188258182,0.78837718,91941.0,91940.0,0.00315354]
[1765188258394,0.79137718,91941.0,91940.0,0.00315354]
[1765188258551,0.92327823,91941.0,91940.0,0.00315354]
[1765188261014,1.16817823,91941.0,91940.0,0.00315354]
[1765188266752,1.16813683,91941.0,91940.0,0.00315354]
[1765188269214,0.54055447,91931.0,91930.0,0.0004]
[1765188269411,0.72907743,91931.0,91930.0,0.0004]
[1765188269635,0.78653743,91931.0,91930.0,0.0004]
[1765188269758,1.03809743,91931.0,91930.0,0.0004]
[1765188269961,0.67564421,91918.0,91917.0,0.00268501]
[1765188270164,0.72644154,91918.0,91917.0,0.00268501]
[1765188270387,0.78390154,91918.0,91917.0,0.00268501]
[1765188270584,0.80453607,91918.0,91917.0,0.00268501]
[1765188271336,0.80653607,91918.0,91917.0,0.00268501]
[1765188272155,0.91624113,91918.0,91917.0,0.00268501]
[1765188272554,0.80653607,91918.0,91917.0,0.00268501]
[1765188272934,0.80710382,91918.0,91917.0,0.00268501]
[1765188274325,0.78490783,91918.0,91917.0,0.00268501]
[1765188274527,0.80710382,91918.0,91917.0,0.00268501]
[1765188275893,1.05200382,91918.0,91917.0,0.00268501]
[1765188276032,1.16169516,91918.0,91917.0,0.00268501]
[1765188278297,1.0519901,91918.0,91917.0,0.00268501]
[1765188280182,1.0519901,91918.0,91917.0,0.00335297]
[1765188280802,1.02979411,91918.0,91917.0,0.00335297]
[1765188281059,1.0519901,91918.0,91917.0,0.00335297]
[1765188285365,0.89353384,91918.0,91917.0,0.00335297]
[1765188285570,0.54852547,91918.0,91917.0,0.00439808]
[1765188286015,0.58326547,91918.0,91917.0,0.00439808]
[1765188286226,0.95755547,91918.0,91917.0,0.00439808]
[1765188286421,0.95555547,91918.0,91917.0,0.00439808]
[1765188286634,0.86952547,91918.0,91917.0,0.00439808]
[1765188286806,0.87052547,91918.0,91917.0,0.00439808]
[1765188287415,0.95655547,91918.0,91917.0,0.00439808]
[1765188287833,0.90526547,91918.0,91917.0,0.00439808]
[1765188288748,0.95655547,91918.0,91917.0,0.00335297]
[1765188289379,0.95712322,91918.0,91917.0,0.00335297]
[1765188289569,0.97931921,91918.0,91917.0,0.00335297]
[1765188290735,0.96730191,91918.0,91917.0,0.00335297]
[1765188290957,1.07700697,91918.0,91917.0,0.00335297]
[1765188291163,1.12265517,91918.0,91917.0,0.00335297]
[1765188296432,1.15197601,91918.0,91917.0,0.00335297]
[1765188297850,1.12265517,91918.0,91917.0,0.00335297]
[1765188299800,1.16174963,91918.0,91917.0,0.00335297]
[1765188300353,1.12265517,91918.0,91917.0,0.00335297]
[1765188300560,1.12268753,91918.0,91917.0,0.00335297]
[1765188301592,1.12668753,91918.0,91917.0,0.00335297]
[1765188301802,1.12568753,91918.0,91917.0,0.00335297]
[1765188302190,1.12768753,91918.0,91917.0,0.00335297]
[1765188302395,1.18643261,91918.0,91917.0,0.00335297]
[1765188302598,1.12768753,91918.0,91917.0,0.00335297]
[1765188303448,1.18638955,91918.0,91917.0,0.00335297]
[1765188303908,1.12769945,91918.0,91917.0,0.00335297]
[1765188304323,1.18638144,91918.0,91917.0,0.00335297]
[1765188304536,1.16922144,91918.0,91917.0,0.00335297]
[1765188304773,1.18638144,91918.0,91917.0,0.00335297]
[1765188304902,1.00083439,91918.0,91917.0,0.00335297]
[1765188305087,1.01799439,91918.0,91917.0,0.00335297]
[1765188305710,1.05711137,91918.0,91917.0,0.00335297]
[1765188305911,1.05511137,91918.0,91917.0,0.00335297]
[1765188306162,1.16481643,91918.0,91917.0,0.00335297]
[1765188306312,1.16281643,91918.0,91917.0,0.00335297]
[1765188306520,0.99683439,91918.0,91917.0,0.00335297]
[1765188306739,0.9917984,91918.0,91917.0,0.00335297]
[1765188307340,0.99683439,91918.0,91917.0,0.00335297]
[1765188307542,0.9917984,91918.0,91917.0,0.00335297]
[1765188307754,0.91211541,91918.0,91917.0,0.00335297]
[1765188307976,0.88198541,91918.0,91917.0,0.00335297]
[1765188308176,0.9914684,91918.0,91917.0,0.00335297]
[1765188308380,0.50708541,91918.0,91917.0,0.00335297]
[1765188308597,0.5867684,91918.0,91917.0,0.00335297]
[1765188308879,0.56328383,91918.0,91917.0,0.00335297]
[1765188309108,0.50076084,91918.0,91917.0,0.00335297]
[1765188309314,0.82176084,91918.0,91917.0,0.00335297]
[1765188309531,0.88428383,91918.0,91917.0,0.00335297]
[1765188309738,0.63938383,91918.0,91917.0,0.00335297]
[1765188310176,0.63881608,91918.0,91917.0,0.00335297]
[1765188310548,0.71804608,91918.0,91917.0,0.00335297]
[1765188310854,0.66708608,91918.0,91917.0,0.00335297]
[1765188311147,0.66372883,91918.0,91917.0,0.00335297]
[1765188311514,0.63145883,91918.0,91917.0,0.00335297]
[1765188311710,0.63145883,91918.0,91917.0,0.08389297]
[1765188311913,0.62126822,91918.0,91917.0,0.08389297]
[1765188312121,0.29826822,91918.0,91917.0,0.03661297]
[1765188312372,0.29826822,91918.0,91917.0,0.08458297]
[1765188312902,0.29826822,91918.0,91917.0,0.00335297]
[1765188313268,0.29826822,91918.0,91917.0,0.08414808]
[1765188313269,0.08068299,91918.0,91917.0,0.08414808]
[1765188313662,0.29826822,91918.0,91917.0,0.08414808]
[1765188313985,0.06352299,91918.0,91917.0,0.08414808]
[1765188314207,0.29826822,91918.0,91917.0,0.08414808]
[1765188314805,0.29826822,91918.0,91917.0,0.03617808]
[1765188315013,0.08068299,91918.0,91917.0,0.08414808]
[1765188315155,0.29826822,91918.0,91917.0,0.08414808]
[1765188315357,0.08068299,91918.0,91917.0,0.08414808]
[1765188315572,0.08068299,91918.0,91917.0,0.00439808]
[1765188315777,0.29826822,91918.0,91917.0,0.00439808]
[1765188317198,0.29826822,91918.0,91906.0,0.22849341]
[1765188317199,0.6563743,91901.0,91890.0,0.0004]
[1765188317399,0.82575567,91901.0,91890.0,0.0004]
[1765188317601,0.23983568,91895.0,91890.0,0.0004]
[1765188317968,0.64322258,91895.0,91890.0,0.0004]
[1765188318159,0.66391428,91895.0,91890.0,0.0004]
[1765188318319,0.69360397,91895.0,91890.0,0.0004]
[1765188318687,0.66430331,91895.0,91890.0,0.0004]
[1765188318892,0.66630331,91895.0,91890.0,0.0004]
[1765188320241,0.74725648,91895.0,91890.0,0.0004]
[1765188320361,0.79281379,91895.0,91890.0,0.0004]
[1765188321368,0.76352203,91895.0,91890.0,0.0004]
[1765188322474,0.66137287,91895.0,91890.0,0.0004]
[1765188322682,0.61604988,91895.0,91890.0,0.0004]
[1765188322894,0.32195518,91895.0,91890.0,0.0004]
[1765188323145,0.64495518,91895.0,91890.0,0.0004]
[1765188323351,0.64495518,91895.0,91894.0,0.00075821]
[1765188323811,0.64395518,91895.0,91894.0,0.00075821]
[1765188324013,0.66615117,91895.0,91894.0,0.00075821]
[1765188324222,0.67430985,91895.0,91894.0,0.00075821]
[1765188324432,0.67630985,91895.0,91894.0,0.00075821]
[1765188324653,0.66615117,91895.0,91894.0,0.00075821]
[1765188324863,0.6763088,91895.0,91894.0,0.00075821]
[1765188325068,0.6773088,91895.0,91894.0,0.00075821]
[1765188325274,0.65511281,91895.0,91894.0,0.00075821]
[1765188325678,0.6773088,91895.0,91894.0,0.00075821]
[1765188326319,0.66715117,91895.0,91894.0,0.00075821]
[1765188333491,0.77685623,91895.0,91894.0,0.00075821]
[1765188334372,0.78700858,91895.0,91894.0,0.00075821]
[1765188334783,0.67730352,91895.0,91894.0,0.00075821]
[1765188336230,0.70069071,91895.0,91894.0,0.00075821]
[1765188338026,0.70069001,91895.0,91894.0,0.00075821]
[1765188341931,0.67849402,91895.0,91894.0,0.00075821]
[1765188342133,0.70069001,91895.0,91894.0,0.00075821]
[1765188342760,0.65510571,91895.0,91894.0,0.00075821]
[1765188343091,0.6551127,91895.0,91894.0,0.00075821]
[1765188343311,0.67852942,91895.0,91894.0,0.00075821]
[1765188343510,0.70072541,91895.0,91894.0,0.00075821]
[1765188343704,0.67852942,91895.0,91894.0,0.00075821]
[1765188347073,0.67796167,91895.0,91894.0,0.07710821]
[1765188347248,0.25460296,91895.0,91894.0,0.07710821]
[1765188347464,0.22102872,91895.0,91894.0,0.07710821]
[1765188348291,0.21802872,91895.0,91894.0,0.07710821]
[1765188348457,0.00038903,91895.0,91894.0,0.07710821]
[1765188348773,0.00038903,91895.0,91894.0,0.29575027]
[1765188348971,0.00038903,91895.0,91894.0,0.07810821]
[1765188349140,0.00038903,91895.0,91894.0,0.29575027]
[1765188349344,0.00038903,91895.0,91894.0,0.07810821]
[1765188350381,0.00038903,91895.0,91894.0,0.29575027]
[1765188351306,0.00038903,91895.0,91894.0,0.29475027]
[1765188351704,0.00038903,91895.0,91894.0,0.30375027]
[1765188352501,0.00038903,91895.0,91894.0,0.32586643]
[1765188363647,0.00038903,91895.0,91894.0,0.34306643]
[1765188365774,0.22724118,91910.0,91909.0,0.04978]
[1765188365996,0.22724118,91910.0,91909.0,0.04982229]
[1765188366133,0.22724118,91910.0,91909.0,0.09285229]
[1765188366746,0.22724109,91910.0,91909.0,0.09285229]
[1765188367198,0.22724109,91910.0,91909.0,0.09385229]
[1765188367379,0.22724109,91910.0,91909.0,0.09585229]
[1765188367981,0.21760417,91910.0,91909.0,0.09585229]
[1765188369524,0.01087997,91912.0,91909.0,0.10673261]
[1765188369698,0.21760184,91911.0,91910.0,0.04303]
[1765188369913,0.22847976,91912.0,91910.0,0.04303]
[1765188370131,0.22847976,91912.0,91911.0,0.02833]
[1765188370526,0.22847976,91912.0,91911.0,0.07136]
[1765188370710,0.22847976,91912.0,91911.0,0.09281]
[1765188371531,0.22847976,91912.0,91911.0,0.09381]
[1765188372518,0.22847976,91912.0,91911.0,0.09481]
[1765188376297,0.21759944,91912.0,91911.0,0.09481]
[1765188376498,0.21759768,91913.0,91911.0,0.09481]
[1765188376700,0.21759944,91912.0,91911.0,0.02345]
[1765188377077,0.21759944,91912.0,91911.0,0.05231]
[1765188377415,0.21759944,91912.0,91911.0,0.09366]
[1765188377654,0.21759944,91912.0,91911.0,0.09466]
[1765188379496,0.21759944,91912.0,91911.0,0.09566]
[1765188386502,0.21759768,91913.0,91911.0,0.09566]
[1765188386708,0.21759944,91912.0,91911.0,0.02345]
[1765188387205,0.21759944,91912.0,91911.0,0.05231]
[1765188387446,0.21759944,91912.0,91911.0,0.09566]
[1765188387803,0.21759944,91912.0,91911.0,0.09466]
[1765188388000,0.21759944,91912.0,91911.0,0.09566]
[1765188388841,0.21759944,91912.0,91911.0,0.09466]
[1765188389034,0.21759944,91912.0,91911.0,0.09566]
[1765188389880,0.21759726,91913.0,91911.0,0.10654009]
[1765188390134,0.21759726,91913.0,91912.0,0.07221]
[1765188390501,0.01087973,91914.0,91912.0,0.07221]
[1765188390708,0.22847443,91914.0,91913.0,0.07221]
[1765188392724,0.22847443,91914.0,91913.0,0.07321]
[1765188398052,0.29261029,91914.0,91913.0,0.001]
[1765188398919,0.3028128,91914.0,91913.0,0.001]
[1765188399113,0.6258128,91914.0,91913.0,0.001]
[1765188399317,0.64932072,91914.0,91913.0,0.001]
[1765188399898,0.60312716,91910.0,91909.0,0.00027467]
[1765188400097,0.67027487,91910.0,91909.0,0.00027467]
[1765188400674,0.64676695,91910.0,91909.0,0.00027467]
[1765188401223,0.67026143,91910.0,91909.0,0.00027467]
[1765188401424,0.64676695,91910.0,91909.0,0.00027467]
[1765188404381,0.63656444,91910.0,91909.0,0.00027467]
[1765188405674,0.63656444,91910.0,91909.0,0.07232467]
[1765188407753,0.62028716,91910.0,91909.0,0.07232467]
[1765188408161,0.21760417,91910.0,91909.0,0.07232467]
[1765188408483,0.22847888,91913.0,91910.0,0.0108802]
[1765188408648,0.21760011,91912.0,91911.0,0.04276]
[1765188409121,0.21760011,91912.0,91911.0,0.07205]
[1765188410638,0.21760011,91912.0,91911.0,0.07305]
[1765188410998,0.22847888,91913.0,91911.0,0.07305]
[1765188411214,0.21759419,91915.0,91912.0,0.28964944]
[1765188411401,0.21759707,91913.0,91912.0,0.04276]
[1765188411621,0.21759707,91913.0,91911.0,0.23248172]
[1765188411826,0.01087961,91915.0,91911.0,0.23248172]
[1765188411827,0.22847218,91915.0,91912.0,0.25776941]
[1765188411989,0.21759555,91914.0,91912.0,0.05363997]
[1765188412189,0.21759555,91914.0,91913.0,0.04276]
[1765188412481,0.21759555,91914.0,91913.0,0.07205]
[1765188413053,0.01087902,91920.0,91915.0,0.01087961]
[1765188413252,0.22846147,91920.0,91917.0,0.02106]
[1765188413450,0.21758483,91919.0,91917.0,0.02106]
[1765188413652,0.21758523,91918.0,91917.0,0.02106]
[1765188414154,0.21758523,91918.0,91917.0,0.09311]
[1765188414454,0.21758523,91918.0,91917.0,0.09411]
[1765188415014,0.21758523,91918.0,91917.0,0.09511]
[1765188415921,0.21758523,91918.0,91917.0,0.09411]
[1765188416453,0.21758523,91918.0,91917.0,0.09511]
[1765188417396,0.2284615,91920.0,91917.0,0.32357697]
[1765188417627,0.21758498,91919.0,91918.0,0.04276]
[1765188417985,0.21758498,91919.0,91918.0,0.07205]
[1765188418186,0.0280389,91921.0,91918.0,0.07205]
[1765188418187,0.01716,91921.0,91918.0,0.07205]
[1765188418363,0.23473813,91921.0,91920.0,0.02758]
[1765188418783,0.23473813,91921.0,91920.0,0.0687]
[1765188421845,0.01627728,91924.0,91921.0,0.0108789]
[1765188422054,0.2284415,91928.0,91921.0,0.0108789]
[1765188422055,0.01716,91925.0,91923.0,0.02758]
[1765188422253,0.01716,91925.0,91924.0,0.21757103]
[1765188422452,0.2175695,91925.0,91924.0,0.02758]
[1765188422661,0.01716,91935.0,91924.0,0.0687]
[1765188422877,0.01087796,91929.0,91926.0,0.02211616]
[1765188423262,0.21755712,91930.0,91928.0,0.04733]
[1765188423467,0.21755712,91930.0,91928.0,0.01975]
[1765188423702,0.28008011,91930.0,91929.0,0.0687]
[1765188424173,0.28008011,91930.0,91929.0,0.02758]
[1765188424309,0.28008011,91930.0,91929.0,0.0687]
[1765188426909,0.29635739,91930.0,91929.0,0.02758]
[1765188427104,0.29635739,91930.0,91928.0,0.01975]
[1765188427342,0.06252299,91929.0,91928.0,0.01975]
[1765188427556,0.21757813,91921.0,91920.0,0.01975]
[1765188427787,0.21757813,91921.0,91920.0,0.06087]
[1765188427956,0.21757813,91921.0,91920.0,0.08845]
[1765188428836,0.21757813,91921.0,91920.0,0.09045]
[1765188429776,0.21757813,91921.0,91920.0,0.09145]
[1765188434880,0.06252299,91933.0,91930.0,0.21755683]
[1765188435032,0.21755222,91932.0,91929.0,0.03033796]
[1765188435248,0.21755683,91930.0,91929.0,0.01946]
[1765188435651,0.21755478,91931.0,91929.0,0.01946]
[1765188435652,0.21755478,91931.0,91929.0,0.04483]
[1765188435853,0.21755212,91932.0,91930.0,0.02537]
[1765188436032,0.21755212,91932.0,91931.0,0.02537]
[1765188436231,0.21755212,91932.0,91931.0,0.06701]
[1765188436669,0.01716,91934.0,91931.0,0.28456441]
[1765188436868,0.21754944,91934.0,91933.0,0.02537]
[1765188437089,0.2284268,91934.0,91933.0,0.02537]
[1765188437289,0.2284268,91934.0,91933.0,0.06701]
[1765188437857,0.2294268,91934.0,91933.0,0.06701]
[1765188438063,0.2294268,91934.0,91933.0,0.28455973]
[1765188438064,0.001,91934.0,91933.0,0.28455973]
[1765188438322,0.0028248,91943.0,91940.0,0.01087665]
[1765188438614,0.01627728,91941.0,91940.0,0.22840982]
[1765188438759,0.01627728,91941.0,91938.0,0.01946]
[1765188438960,0.01627728,91941.0,91940.0,0.02537]
[1765188439358,0.23380808,91941.0,91940.0,0.06701]
[1765188439556,0.23380808,91941.0,91940.0,0.06705229]
[1765188439800,0.01627728,91941.0,91940.0,0.06705229]
[1765188440427,0.23380808,91941.0,91940.0,0.06705229]
[1765188440658,0.01627728,91941.0,91940.0,0.06805229]
[1765188440947,0.01627728,91941.0,91940.0,0.06705229]
[1765188441098,0.01627728,91941.0,91940.0,0.06805229]
[1765188441896,0.23380808,91941.0,91940.0,0.06805229]
[1765188442862,0.01627728,91941.0,91940.0,0.06805229]
[1765188443571,0.23380808,91941.0,91940.0,0.06805229]
[1765188445733,0.29633107,91941.0,91940.0,0.00104229]
[1765188445875,0.61933107,91941.0,91940.0,0.00104229]
[1765188446705,0.63879107,91941.0,91940.0,0.00104229]
[1765188446882,0.63879107,91941.0,91940.0,4.229e-05]
[1765188447919,0.63979107,91941.0,91940.0,4.229e-05]
[1765188449707,0.62033107,91941.0,91940.0,0.06705229]
[1765188450069,0.31449107,91941.0,91940.0,0.06705229]
[1765188450644,0.31349107,91941.0,91940.0,0.06705229]
[1765188451397,0.31349107,91941.0,91940.0,0.06805229]
[1765188451600,0.01627728,91941.0,91940.0,0.06805229]
[1765188451801,0.01627728,91941.0,91940.0,0.06905229]
[1765188452602,0.23380808,91941.0,91940.0,0.06905229]
[1765188454470,0.0108763,91943.0,91940.0,0.06905229]
[1765188454685,0.21752607,91943.0,91942.0,0.02537]
[1765188454906,0.23468607,91943.0,91942.0,0.02537]
[1765188455108,0.01716,91943.0,91942.0,0.06701]
[1765188455330,0.23468607,91943.0,91942.0,0.06701]
[1765188455817,0.23468607,91943.0,91942.0,0.02537]
[1765188456024,0.2175308,91941.0,91940.0,4.229e-05]
[1765188456406,0.60466666,91941.0,91940.0,4.229e-05]
[1765188456813,0.60466666,91941.0,91940.0,0.00104229]
[1765188457227,0.60466666,91941.0,91940.0,4.229e-05]
[1765188457408,0.60466666,91941.0,91940.0,0.00104229]
[1765188457609,0.60466666,91941.0,91940.0,4.229e-05]
[1765188457859,0.61484632,91941.0,91940.0,4.229e-05]
[1765188458043,0.66049649,91941.0,91940.0,4.229e-05]
[1765188458447,0.6383005,91941.0,91940.0,4.229e-05]
[1765188458644,0.6393005,91941.0,91940.0,4.229e-05]
[1765188458805,0.63930099,91941.0,91940.0,4.229e-05]
[1765188459009,0.63930099,91941.0,91940.0,0.02541229]
[1765188459239,0.63930099,91941.0,91940.0,4.229e-05]
[1765188459439,0.64130099,91941.0,91940.0,4.229e-05]
[1765188459633,0.64030099,91941.0,91940.0,4.229e-05]
[1765188459898,0.64030137,91941.0,91940.0,4.229e-05]
[1765188460057,0.64130137,91941.0,91940.0,4.229e-05]
[1765188461460,0.64130137,91941.0,91940.0,0.06705229]
[1765188461699,0.22214367,91941.0,91940.0,0.06705229]
[1765188461873,0.23930367,91941.0,91940.0,0.06705229]
[1765188462290,0.23730367,91941.0,91940.0,0.06705229]
[1765188462705,0.23730367,91941.0,91940.0,0.06805229]
[1765188462861,0.23630367,91941.0,91940.0,0.06805229]
[1765188467683,0.21914367,91941.0,91940.0,0.06805229]
[1765188467992,0.23630367,91941.0,91940.0,0.06805229]
[1765188474004,0.23630367,91941.0,91940.0,0.02641229]
[1765188474258,0.23630367,91941.0,91940.0,0.06535229]
[1765188475380,0.23630367,91941.0,91940.0,0.00104229]
[1765188475979,0.55930367,91941.0,91940.0,0.00104229]
[1765188476180,0.62182666,91941.0,91940.0,0.00104229]
[1765188477093,0.62182666,91941.0,91940.0,0.06722229]
[1765188477652,0.62182666,91941.0,91940.0,0.06622229]
[1765188478571,0.29882666,91941.0,91940.0,0.06622229]
[1765188480341,0.01877287,91941.0,91940.0,0.06622229]
[1765188480489,0.25258095,91941.0,91940.0,0.06622229]
[1765188481881,0.25258095,91941.0,91940.0,0.06722229]
[1765188482098,0.25258095,91941.0,91940.0,0.06822229]
[1765188484599,0.63810394,91941.0,91940.0,0.00204229]
[1765188485590,0.63810394,91941.0,91940.0,0.00104229]
[1765188485815,0.63810394,91941.0,91940.0,4.229e-05]
[1765188486132,0.66129993,91941.0,91940.0,4.229e-05]
[1765188486892,0.63910394,91941.0,91940.0,4.229e-05]
[1765188487295,0.67376434,91941.0,91940.0,4.229e-05]
[1765188487722,0.67376434,91941.0,91940.0,0.02478229]
[1765188488127,0.67376434,91941.0,91940.0,4.229e-05]
[1765188488537,0.67376557,91941.0,91940.0,4.229e-05]
[1765188488741,0.67376557,91941.0,91940.0,0.02478229]
[1765188490400,0.67376671,91941.0,91940.0,0.02478229]
[1765188490570,0.31013401,91941.0,91940.0,0.06011229]
[1765188490871,0.31710394,91941.0,91940.0,0.06011229]
[1765188491783,0.32629752,91941.0,91940.0,0.06011229]
[1765188492130,0.32529752,91941.0,91940.0,0.06111229]
[1765188493581,0.32529752,91941.0,91940.0,0.06211229]
[1765188497997,0.32529765,91941.0,91940.0,0.06211229]
[1765188499629,0.31510394,91941.0,91940.0,0.06211229]
[1765188499830,0.03343728,91941.0,91940.0,0.06211229]
[1765188500373,0.25096808,91941.0,91940.0,0.06211229]
[1765188502357,0.25096808,91941.0,91940.0,0.00204229]